bitfinex/quotes_BTCUSD_20230109
["timestamp","ask_amount","ask_price","bid_price","bid_amount"]
[1673296459533,0.00278856,17235.0,17234.0,3.82993959]
[1673296459795,0.00278856,17235.0,17234.0,3.656438]
[1673296460844,0.00278856,17235.0,17234.0,3.70988015]
[1673296461330,0.00278856,17235.0,17234.0,3.99999015]
[1673296461841,0.00278856,17235.0,17234.0,3.70988015]
[1673296462108,0.00278856,17235.0,17234.0,3.656438]
[1673296463404,0.00278856,17235.0,17234.0,2.88625448]
[1673296463659,0.84688721,17239.0,17235.0,1.00910451]
[1673296463915,0.00015,17238.0,17236.0,1.93925189]
[1673296464436,0.00015,17238.0,17236.0,1.760348]
[1673296464702,0.00015,17238.0,17237.0,0.3]
[1673296464944,0.00015,17238.0,17237.0,0.580147]
[1673296465492,0.44814699,17236.0,17235.0,0.580191]
[1673296465784,0.44814699,17236.0,17234.0,1.180228]
[1673296466012,0.44814699,17236.0,17234.0,1.760476]
[1673296466547,0.44814699,17236.0,17235.0,0.53621962]
[1673296466847,0.44814699,17236.0,17235.0,1.99664762]
[1673296467117,0.44814699,17236.0,17235.0,1.69664762]
[1673296468714,0.44814699,17236.0,17235.0,1.99664762]
[1673296468975,0.52814699,17236.0,17235.0,2.88286162]
[1673296469233,0.52814699,17236.0,17235.0,3.47680929]
[1673296470318,0.52814699,17236.0,17235.0,2.87680929]
[1673296471454,0.52814699,17236.0,17235.0,2.28240283]
[1673296471710,0.52814699,17236.0,17235.0,1.70218883]
[1673296473824,0.52814699,17236.0,17235.0,2.18109272]
[1673296474071,0.52814699,17236.0,17235.0,3.35819236]
[1673296474842,0.52814699,17236.0,17235.0,2.9084365]
[1673296475399,0.52814699,17236.0,17235.0,2.7961365]
[1673296475657,0.52814699,17236.0,17235.0,2.4961365]
[1673296475915,0.52814699,17236.0,17235.0,2.7961365]
[1673296476228,0.52814699,17236.0,17235.0,3.3763505]
[1673296476757,0.52814699,17236.0,17235.0,3.0763505]
[1673296477013,0.52814699,17236.0,17235.0,1.70218883]
[1673296477540,0.52814699,17236.0,17235.0,1.12197483]
[1673296478094,0.52814699,17236.0,17235.0,1.70218883]
[1673296480476,0.52814699,17236.0,17235.0,2.28240283]
[1673296480976,0.52814699,17236.0,17235.0,1.70218883]
[1673296483775,0.52814699,17236.0,17235.0,2.28240283]
[1673296484292,0.52814699,17236.0,17235.0,1.70218883]
[1673296485062,0.52814699,17236.0,17235.0,0.586214]
[1673296485343,1.27455019,17236.0,17235.0,0.006]
[1673296485580,2.2031893,17236.0,17235.0,0.006]
[1673296485838,1.6230083,17236.0,17235.0,0.006]
[1673296487330,1.2610723,17236.0,17235.0,0.006]
[1673296487590,0.75234699,17236.0,17235.0,0.006]
[1673296487856,0.52814699,17236.0,17235.0,0.006]
[1673296488608,0.52814699,17236.0,17235.0,0.00687833]
[1673296490143,0.52814699,17236.0,17235.0,0.58709233]
[1673296491635,0.52814699,17236.0,17235.0,0.586214]
[1673296492692,0.52814699,17236.0,17235.0,1.166428]
[1673296492957,0.52814699,17236.0,17235.0,1.746642]
[1673296495072,0.5280856,17236.0,17235.0,1.746642]
[1673296495339,0.5280856,17236.0,17235.0,1.946642]
[1673296495651,0.5280856,17236.0,17235.0,3.12385703]
[1673296495904,0.5280856,17236.0,17235.0,3.99620393]
[1673296496159,0.5280856,17236.0,17235.0,3.99633082]
[1673296496413,0.5280856,17236.0,17235.0,3.54871694]
[1673296496662,0.5280856,17236.0,17235.0,3.49513233]
[1673296498239,0.5280856,17236.0,17235.0,3.12385703]
[1673296498740,0.5280856,17236.0,17235.0,2.92385703]
[1673296500072,0.5280856,17236.0,17235.0,2.45035544]
[1673296500347,0.76576349,17236.0,17235.0,1.166428]
[1673296500607,0.76576349,17236.0,17235.0,0.586214]
[1673296500608,0.8900216,17236.0,17235.0,0.586214]
[1673296500875,0.8900216,17236.0,17235.0,1.586214]
[1673296500876,0.5280856,17236.0,17235.0,1.586214]
[1673296502453,0.5254176,17236.0,17235.0,0.586214]
[1673296504254,0.5254176,17236.0,17235.0,1.166428]
[1673296505029,0.5254176,17236.0,17235.0,0.586214]
[1673296505553,0.5254176,17236.0,17235.0,0.006]
[1673296505815,2.02468273,17236.0,17235.0,0.006]
[1673296506118,0.3,17235.0,17233.0,0.6]
[1673296506333,0.474136,17234.0,17233.0,0.6]
[1673296506582,0.586436,17234.0,17233.0,0.6]
[1673296507593,0.721436,17234.0,17233.0,0.6]
[1673296507808,0.586436,17234.0,17233.0,0.6]
[1673296508359,1.30009651,17234.0,17233.0,0.6]
[1673296509372,1.77193387,17234.0,17233.0,0.6]
[1673296510149,0.3,17233.0,17232.0,0.6]
[1673296510405,0.773736,17233.0,17232.0,0.6]
[1673296510899,0.992082,17233.0,17232.0,0.6]
[1673296511157,1.354018,17233.0,17232.0,0.6]
[1673296511654,1.489018,17233.0,17232.0,0.6]
[1673296511906,2.57705575,17233.0,17232.0,0.6]
[1673296512163,2.44205575,17233.0,17232.0,0.6]
[1673296512423,2.08011975,17233.0,17232.0,0.6]
[1673296512679,2.44205575,17233.0,17230.0,1.180382]
[1673296512928,0.2245,17231.0,17230.0,0.6]
[1673296513188,1.40446289,17231.0,17230.0,0.6]
[1673296513456,2.52630504,17231.0,17229.0,0.01617293]
[1673296513758,0.586036,17230.0,17229.0,0.01617293]
[1673296514004,2.22597304,17230.0,17229.0,0.01617293]
[1673296514527,2.91336949,17230.0,17229.0,0.01617293]
[1673296514775,3.04836949,17230.0,17229.0,0.01617293]
[1673296515024,2.91336949,17230.0,17229.0,0.01617293]
[1673296515283,2.57019845,17230.0,17229.0,0.01617293]
[1673296515544,3.04936949,17230.0,17229.0,0.01617293]
[1673296516327,3.62975249,17230.0,17229.0,0.01617293]
[1673296516814,4.17441774,17230.0,17229.0,0.01617293]
[1673296517074,3.74155249,17230.0,17229.0,0.01617293]
[1673296517819,3.60555249,17230.0,17229.0,0.01617293]
[1673296518068,3.74155249,17230.0,17229.0,0.01617293]
[1673296518573,3.60555249,17230.0,17229.0,0.01617293]
[1673296518821,0.235212,17228.0,17227.0,0.01607715]
[1673296519118,3.89664693,17228.0,17227.0,0.01607715]
[1673296519378,3.26576904,17228.0,17227.0,0.01607715]
[1673296519637,3.84413041,17228.0,17227.0,0.01607715]
[1673296519887,4.25854345,17228.0,17227.0,0.01607715]
[1673296520161,4.39454345,17228.0,17227.0,0.01607715]
[1673296520399,4.25854345,17228.0,17227.0,0.01607715]
[1673296520651,4.39454345,17228.0,17227.0,0.01607715]
[1673296521175,4.69454345,17228.0,17227.0,0.01607715]
[1673296521426,4.69021944,17228.0,17227.0,0.01607715]
[1673296521689,4.69021944,17228.0,17226.0,0.00629814]
[1673296521690,0.3,17227.0,17226.0,0.00629814]
[1673296521943,4.1065501,17227.0,17226.0,0.00629814]
[1673296522199,4.78248746,17227.0,17226.0,0.00629814]
[1673296522451,0.8091642,17226.0,17223.0,0.01607715]
[1673296522707,0.224,17224.0,17223.0,0.19498104]
[1673296522960,0.224,17224.0,17223.0,0.01607715]
[1673296522961,0.473636,17224.0,17223.0,0.01607715]
[1673296523215,0.773636,17224.0,17223.0,0.01607715]
[1673296523974,0.909636,17224.0,17223.0,0.01607715]
[1673296524495,0.909636,17224.0,17223.0,0.72793721]
[1673296524496,0.609696,17224.0,17223.0,0.72793721]
[1673296524761,0.609696,17224.0,17223.0,0.61295296]
[1673296524762,0.24776,17224.0,17223.0,0.61295296]
[1673296525008,0.13606,17224.0,17223.0,0.61295296]
[1673296525319,0.13606,17224.0,17223.0,1.19357096]
[1673296525320,0.13506,17224.0,17223.0,1.19357096]
[1673296525534,6e-05,17224.0,17223.0,1.19357096]
[1673296525793,0.12906,17224.0,17223.0,1.19357096]
[1673296526066,0.12906,17224.0,17223.0,0.61295296]
[1673296526332,0.12906,17224.0,17223.0,0.61405487]
[1673296526589,0.12906,17224.0,17223.0,1.19467287]
[1673296526841,0.12906,17224.0,17223.0,1.77529087]
[1673296527353,0.12906,17224.0,17223.0,2.07529087]
[1673296527863,0.12906,17224.0,17223.0,1.77529087]
[1673296528141,0.12906,17224.0,17223.0,2.07529087]
[1673296528639,0.12906,17224.0,17223.0,2.65590887]
[1673296530162,0.12906,17224.0,17223.0,2.35590887]
[1673296530656,0.129,17224.0,17223.0,1.77418896]
[1673296533647,0.129,17224.0,17223.0,1.80634731]
[1673296535928,1.16236459,17224.0,17223.0,0.0482355]
[1673296536182,1.5866227,17224.0,17223.0,0.0482355]
[1673296536680,2.0382077,17224.0,17223.0,0.0482355]
[1673296536930,2.1672077,17224.0,17223.0,0.0482355]
[1673296537418,2.0382077,17224.0,17223.0,0.0482355]
[1673296537681,2.1732077,17224.0,17223.0,0.0482355]
[1673296538176,2.7537927,17224.0,17223.0,0.0482355]
[1673296538696,2.6187927,17224.0,17223.0,0.0482355]
[1673296538943,2.7537927,17224.0,17223.0,0.0482355]
[1673296540735,3.01676615,17224.0,17223.0,0.0482355]
[1673296540994,3.01676615,17224.0,17223.0,0.0478355]
[1673296540995,3.81354874,17224.0,17223.0,0.0478355]
[1673296541247,4.03704874,17224.0,17223.0,0.0478355]
[1673296541497,4.03704874,17224.0,17221.0,0.02031351]
[1673296541498,0.26004796,17222.0,17221.0,0.02031351]
[1673296541765,2.0914379,17222.0,17221.0,0.02031351]
[1673296542018,2.2037379,17222.0,17221.0,0.02031351]
[1673296542280,1.72663596,17222.0,17221.0,0.02031351]
[1673296543090,1.86263596,17222.0,17221.0,0.02031351]
[1673296544331,2.44328796,17222.0,17221.0,0.02031351]
[1673296545129,3.1302293,17222.0,17221.0,0.02031351]
[1673296545641,4.4242866,17222.0,17221.0,0.02031351]
[1673296546146,4.2882866,17222.0,17221.0,0.02031351]
[1673296546681,4.4242866,17222.0,17221.0,0.02031351]
[1673296548504,4.29934324,17222.0,17221.0,0.02031351]
[1673296548758,3.7105413,17222.0,17221.0,0.02031351]
[1673296549014,4.18764324,17222.0,17221.0,0.02031351]
[1673296550568,3.7105413,17222.0,17221.0,0.02031351]
[1673296550837,3.7105413,17222.0,17221.0,0.02001351]
[1673296550838,1.6210553,17222.0,17221.0,0.02001351]
[1673296551625,1.6210553,17222.0,17221.0,0.0488827]
[1673296553237,0.52281396,17222.0,17221.0,0.0488827]
[1673296553682,0.52281396,17222.0,17221.0,1.30123545]
[1673296553685,0.52281396,17222.0,17221.0,1.27236626]
[1673296553948,0.52281396,17222.0,17221.0,1.85305226]
[1673296553949,0.16087796,17222.0,17221.0,1.85305226]
[1673296554193,0.16087796,17222.0,17221.0,1.85311551]
[1673296554690,0.16087796,17222.0,17221.0,1.88132509]
[1673296555204,0.16087796,17222.0,17221.0,2.46201109]
[1673296555758,0.16087796,17222.0,17221.0,2.94091498]
[1673296556223,0.16087796,17222.0,17221.0,3.46282929]
[1673296556748,0.16087796,17222.0,17221.0,4.1088758]
[1673296557254,0.02487796,17222.0,17221.0,4.1088758]
[1673296557534,0.00607796,17222.0,17221.0,4.1198758]
[1673296557795,6e-05,17223.0,17221.0,4.1088758]
[1673296558047,6e-05,17223.0,17222.0,1.9]
[1673296558321,6e-05,17223.0,17222.0,4.64365794]
[1673296558609,6e-05,17223.0,17222.0,4.71332585]
[1673296558865,0.01206,17223.0,17222.0,4.71332585]
[1673296559108,6e-05,17223.0,17222.0,4.71332585]
[1673296559360,6e-05,17223.0,17222.0,5.21332585]
[1673296560111,0.00606,17223.0,17222.0,5.22432585]
[1673296560352,0.00606,17223.0,17222.0,6.5338495]
[1673296560598,0.00606,17223.0,17222.0,6.49537546]
[1673296561349,0.00606,17223.0,17222.0,6.01827352]
[1673296561602,0.00606,17223.0,17222.0,5.01827352]
[1673296564416,0.00606,17223.0,17222.0,4.71827352]
[1673296564662,0.00606,17223.0,17222.0,5.01827352]
[1673296566689,0.00606,17223.0,17222.0,5.05011319]
[1673296566946,0.00606,17223.0,17222.0,4.75011319]
[1673296567471,0.00606,17223.0,17222.0,4.45011319]
[1673296567747,0.16488,17223.0,17222.0,2.272304]
[1673296567970,0.16488,17223.0,17222.0,1.672304]
[1673296567971,0.24123,17223.0,17222.0,1.672304]
[1673296568488,0.00606,17223.0,17222.0,1.672304]
[1673296568778,0.00606,17223.0,17222.0,1.70414367]
[1673296569269,0.08241,17223.0,17222.0,1.70414367]
[1673296569526,0.00606,17223.0,17222.0,1.12349167]
[1673296570826,0.006,17223.0,17222.0,1.70414367]
[1673296571408,0.006,17223.0,17222.0,1.70420692]
[1673296572208,0.006,17223.0,17222.0,2.28485892]
[1673296573535,0.006,17223.0,17222.0,1.70414367]
[1673296573781,0.006,17223.0,17222.0,1.70420692]
[1673296574071,0.08235,17223.0,17222.0,1.12349167]
[1673296575091,0.006,17223.0,17222.0,1.12355492]
[1673296575359,0.006,17223.0,17222.0,1.70420692]
[1673296575874,0.006,17223.0,17222.0,1.70414367]
[1673296576648,0.006,17223.0,17222.0,1.70420692]
[1673296577418,0.006,17223.0,17222.0,1.70414367]
[1673296578701,0.006,17223.0,17222.0,1.70420692]
[1673296578964,0.006,17223.0,17222.0,1.70414367]
[1673296581286,0.006,17223.0,17222.0,1.70420692]
[1673296581530,0.08235,17223.0,17222.0,0.54283967]
[1673296582027,0.006,17223.0,17222.0,0.54283967]
[1673296582283,0.006,17223.0,17222.0,0.54290292]
[1673296582537,0.006,17223.0,17222.0,0.54283967]
[1673296583547,0.08235,17223.0,17222.0,0.54283967]
[1673296585098,0.444286,17223.0,17222.0,0.54283967]
[1673296585366,1.30527899,17223.0,17222.0,0.54283967]
[1673296585654,1.88589699,17223.0,17222.0,0.54283967]
[1673296586405,1.88589699,17223.0,17222.0,0.53183967]
[1673296586406,1.29927899,17223.0,17222.0,0.53183967]
[1673296586657,0.86099299,17223.0,17222.0,0.53183967]
[1673296586959,1.35692899,17223.0,17222.0,0.53383967]
[1673296587224,0.134,17223.0,17222.0,1.11449167]
[1673296587991,0.134,17223.0,17222.0,2.36055851]
[1673296588254,0.134,17223.0,17222.0,2.94121051]
[1673296589053,0.134,17223.0,17222.0,3.94121051]
[1673296589337,0.134,17223.0,17222.0,4.05281051]
[1673296589618,0.13392073,17223.0,17222.0,4.05281051]
[1673296590382,0.13392073,17223.0,17222.0,4.05287376]
[1673296591179,0.13392073,17223.0,17222.0,4.11477535]
[1673296591646,0.13392073,17223.0,17222.0,4.70872302]
[1673296591892,0.13392073,17223.0,17222.0,5.26899894]
[1673296592183,0.13392073,17223.0,17222.0,5.18532258]
[1673296592387,0.13392073,17223.0,17222.0,5.48532258]
[1673296594180,0.13392073,17223.0,17222.0,5.65885555]
[1673296594435,0.13392073,17223.0,17222.0,5.5694539]
[1673296594677,0.09931727,17223.0,17222.0,5.95059813]
[1673296594926,0.09931727,17223.0,17222.0,5.63829477]
[1673296595175,0.09931727,17223.0,17222.0,6.22217622]
[1673296595679,0.09931727,17223.0,17222.0,6.2497471]
[1673296595937,6e-05,17224.0,17222.0,6.2497471]
[1673296595938,6e-05,17224.0,17222.0,6.2477471]
[1673296596206,6e-05,17224.0,17223.0,2.26893437]
[1673296596446,6e-05,17224.0,17223.0,3.19704704]
[1673296596694,6e-05,17224.0,17223.0,4.35828304]
[1673296596941,6e-05,17224.0,17223.0,4.97643027]
[1673296597203,0.00406,17224.0,17223.0,4.97643027]
[1673296597701,0.05306,17224.0,17223.0,4.57551954]
[1673296597967,0.05306,17224.0,17223.0,5.0098826]
[1673296598215,0.05306,17224.0,17223.0,4.6624891]
[1673296598518,0.05306,17224.0,17223.0,4.22812604]
[1673296598959,0.05306,17224.0,17223.0,4.66232087]
[1673296599199,0.05306,17224.0,17223.0,5.00970024]
[1673296599949,0.05306,17224.0,17223.0,4.83597026]
[1673296600193,0.05306,17224.0,17223.0,4.88613453]
[1673296600435,0.05306,17224.0,17223.0,4.83597026]
[1673296600688,0.05306,17224.0,17223.0,4.80841676]
[1673296601421,0.05306,17224.0,17223.0,4.80341676]
[1673296601683,0.05306,17224.0,17223.0,4.25165662]
[1673296601934,0.05306,17224.0,17223.0,3.47485943]
[1673296603210,0.05306,17224.0,17223.0,3.77485943]
[1673296603714,0.05306,17224.0,17223.0,3.47485943]
[1673296603965,0.053,17224.0,17223.0,2.59508548]
[1673296606753,0.053,17224.0,17223.0,2.56600123]
[1673296607760,0.053,17224.0,17223.0,2.36600123]
[1673296608767,0.053,17224.0,17223.0,2.39508548]
[1673296609524,0.213,17224.0,17223.0,2.36600123]
[1673296609766,0.213,17224.0,17223.0,1.78538323]
[1673296610507,0.213,17224.0,17223.0,1.81446748]
[1673296612520,0.213,17224.0,17223.0,1.8144068]
[1673296613560,0.213,17224.0,17223.0,2.36594055]
[1673296613821,0.213,17224.0,17223.0,2.83956683]
[1673296614579,0.213,17224.0,17223.0,2.86865108]
[1673296615381,0.213,17224.0,17223.0,2.3950248]
[1673296618197,0.213,17224.0,17223.0,1.8144068]
[1673296618969,0.213,17224.0,17223.0,1.81447004]
[1673296621714,0.213,17224.0,17223.0,1.8144068]
[1673296622724,0.213,17224.0,17223.0,1.81447004]
[1673296624730,0.213,17224.0,17223.0,1.78538579]
[1673296625720,0.213,17224.0,17223.0,1.81438024]
[1673296626986,0.213,17224.0,17223.0,2.86862452]
[1673296627238,0.213,17224.0,17223.0,3.35085406]
[1673296627491,0.213,17224.0,17223.0,3.35079715]
[1673296628796,0.213,17224.0,17223.0,3.69816782]
[1673296629060,0.213,17224.0,17223.0,3.52454154]
[1673296630557,0.213,17224.0,17223.0,3.81037152]
[1673296633435,0.213,17224.0,17223.0,4.07119335]
[1673296633962,0.213,17224.0,17223.0,3.33692658]
[1673296634230,0.213,17224.0,17223.0,3.16344916]
[1673296635288,0.213,17224.0,17223.0,3.46344916]
[1673296635752,0.213,17224.0,17223.0,3.63692658]
[1673296636011,0.21289751,17224.0,17223.0,3.33692658]
[1673296636267,0.21289751,17224.0,17223.0,3.16347715]
[1673296637267,0.21289751,17224.0,17223.0,2.24906007]
[1673296637528,0.21289751,17224.0,17223.0,1.814317]
[1673296638299,0.05289751,17224.0,17223.0,1.233699]
[1673296639317,0.05289751,17224.0,17223.0,1.98823824]
[1673296641633,0.05289751,17224.0,17223.0,0.61555177]
[1673296642902,0.05289751,17224.0,17223.0,0.03499445]
[1673296645439,0.05289751,17224.0,17223.0,1.19623045]
[1673296646201,0.05289751,17224.0,17223.0,3.1996446]
[1673296646448,0.05289751,17224.0,17223.0,3.9536443]
[1673296646706,0.05289751,17224.0,17223.0,3.42736974]
[1673296646962,0.05289751,17224.0,17223.0,3.54066974]
[1673296647225,0.05289751,17224.0,17223.0,3.53966974]
[1673296647481,0.05289751,17224.0,17223.0,3.89941388]
[1673296647961,0.05289751,17224.0,17223.0,4.33416615]
[1673296648266,0.05289751,17224.0,17223.0,4.33416546]
[1673296649032,0.05289751,17224.0,17223.0,4.32416546]
[1673296649327,0.05289751,17224.0,17223.0,4.33805059]
[1673296650617,0.05289751,17224.0,17223.0,4.511897]
[1673296651318,0.05289751,17224.0,17223.0,4.94664858]
[1673296651564,0.05289751,17224.0,17223.0,4.68581838]
[1673296651812,0.05289751,17224.0,17223.0,4.94663933]
[1673296652060,0.05289751,17224.0,17223.0,4.5118913]
[1673296652306,0.05289751,17224.0,17223.0,3.14509463]
[1673296652553,0.05289751,17224.0,17223.0,2.07864137]
[1673296653057,0.05289751,17224.0,17223.0,2.33946587]
[1673296653313,0.05289751,17224.0,17223.0,2.07864137]
[1673296654092,0.05289751,17224.0,17223.0,2.07870161]
[1673296654355,0.05289751,17224.0,17223.0,1.49802337]
[1673296654590,0.05289751,17224.0,17223.0,1.32413425]
[1673296655073,0.05289751,17224.0,17223.0,1.49808361]
[1673296655312,0.05289751,17224.0,17223.0,2.07870161]
[1673296656621,0.05289751,17224.0,17223.0,2.53952611]
[1673296656877,0.05289751,17224.0,17223.0,3.43202267]
[1673296657893,0.05289751,17224.0,17223.0,3.60590134]
[1673296659450,0.05289751,17224.0,17223.0,3.43202264]
[1673296659979,0.05289751,17224.0,17223.0,3.13202264]
[1673296660490,0.05289751,17224.0,17223.0,3.1319624]
[1673296660785,0.05289751,17224.0,17223.0,2.07864134]
[1673296662108,0.05289751,17224.0,17223.0,1.49802334]
[1673296662311,0.05289751,17224.0,17223.0,1.32413425]
[1673296662837,0.05289751,17224.0,17223.0,1.49802334]
[1673296663094,0.05289751,17224.0,17223.0,1.32413425]
[1673296663400,0.05289751,17224.0,17223.0,1.49802334]
[1673296664638,0.05289751,17224.0,17223.0,2.07864134]
[1673296664905,0.05289751,17224.0,17223.0,1.49802334]
[1673296665152,0.05289751,17224.0,17223.0,1.32413425]
[1673296665406,0.05289751,17224.0,17223.0,0.03887958]
[1673296666954,0.21289751,17224.0,17223.0,0.03887958]
[1673296668761,0.21289751,17224.0,17223.0,1.20023019]
[1673296669024,0.21289751,17224.0,17223.0,1.37411928]
[1673296670030,0.21289751,17224.0,17223.0,1.85190399]
[1673296671144,0.21289751,17224.0,17223.0,1.93494378]
[1673296671341,0.21289751,17224.0,17223.0,1.85190994]
[1673296671584,0.21282419,17224.0,17223.0,1.85190994]
[1673296671835,0.21282419,17224.0,17223.0,1.85191533]
[1673296672091,0.21282419,17224.0,17223.0,1.37411928]
[1673296672342,0.21282419,17224.0,17223.0,1.37400467]
[1673296673109,0.15282419,17224.0,17223.0,1.37400467]
[1673296673374,0.15282419,17224.0,17223.0,1.20011558]
[1673296673874,0.15282419,17224.0,17223.0,1.37400467]
[1673296675147,0.15282419,17224.0,17223.0,1.20011558]
[1673296675901,0.15282419,17224.0,17223.0,1.20023019]
[1673296677864,0.15282419,17224.0,17223.0,1.57411928]
[1673296678112,0.15282419,17224.0,17223.0,1.37411928]
[1673296678623,0.15282419,17224.0,17223.0,1.50023019]
[1673296678877,0.15282419,17224.0,17223.0,1.67411928]
[1673296679648,0.15282419,17224.0,17223.0,2.25473728]
[1673296679908,0.15282419,17224.0,17223.0,1.95473728]
[1673296680705,0.15282419,17224.0,17223.0,1.95462267]
[1673296681523,0.15282419,17224.0,17223.0,1.95473728]
[1673296681769,0.15282419,17224.0,17223.0,1.78084819]
[1673296682022,0.14646358,17224.0,17223.0,2.08084819]
[1673296682266,0.14646358,17224.0,17223.0,1.78084819]
[1673296682543,0.14646358,17224.0,17223.0,1.20011558]
[1673296682808,0.14646358,17224.0,17223.0,0.61949758]
[1673296683038,0.14646358,17224.0,17223.0,0.03887958]
[1673296685319,0.14646358,17224.0,17223.0,0.81949758]
[1673296685563,0.14646358,17224.0,17223.0,0.61949758]
[1673296686801,0.14646358,17224.0,17223.0,1.39717814]
[1673296687061,0.14646358,17224.0,17223.0,1.97779614]
[1673296688563,0.14646358,17224.0,17223.0,1.39717814]
[1673296688807,0.14646358,17224.0,17223.0,1.22328905]
[1673296689319,0.14646358,17224.0,17223.0,0.64267105]
[1673296692096,0.14646358,17224.0,17223.0,0.03887958]
[1673296692878,0.77655029,17224.0,17223.0,0.03887958]
[1673296693133,0.94838765,17224.0,17223.0,0.03887958]
[1673296693384,1.24978629,17224.0,17223.0,0.03887958]
[1673296693647,4.5982826,17224.0,17223.0,0.03887958]
[1673296693993,4.54648619,17224.0,17223.0,0.03887958]
[1673296694179,5.31945631,17224.0,17223.0,0.03887958]
[1673296694424,5.27299273,17224.0,17223.0,0.03887958]
[1673296694686,5.29699273,17224.0,17223.0,0.04187958]
[1673296695192,4.95344364,17224.0,17223.0,0.04187958]
[1673296695456,5.27268472,17224.0,17223.0,0.03887958]
[1673296695709,5.40868472,17224.0,17223.0,0.03987958]
[1673296695961,0.3,17223.0,17222.0,0.4722906]
[1673296696220,3.65717915,17223.0,17222.0,0.4722906]
[1673296696531,4.68921788,17223.0,17222.0,0.4722906]
[1673296696752,5.37187133,17223.0,17222.0,0.49744435]
[1673296697009,5.95248933,17223.0,17222.0,0.49744435]
[1673296697265,4.43151088,17223.0,17222.0,0.49844435]
[1673296697523,5.65786572,17223.0,17222.0,0.49844435]
[1673296697790,6.28216358,17223.0,17222.0,0.49844435]
[1673296698541,6.28188499,17223.0,17222.0,0.49844435]
[1673296698795,5.70326435,17223.0,17222.0,0.49844435]
[1673296699048,5.89854332,17223.0,17222.0,0.49844435]
[1673296699311,6.32687151,17223.0,17222.0,0.49844435]
[1673296699830,6.32687151,17223.0,17222.0,0.4732906]
[1673296700614,6.95286285,17223.0,17222.0,0.4732906]
[1673296700862,0.20927951,17221.0,17220.0,0.01948944]
[1673296701117,3.60460107,17221.0,17220.0,0.01948944]
[1673296701369,3.1849407,17221.0,17220.0,0.01948944]
[1673296701883,3.35606655,17221.0,17220.0,0.01948944]
[1673296702133,3.1849407,17221.0,17220.0,0.01948944]
[1673296702389,3.1849407,17221.0,17220.0,0.02048944]
[1673296702390,3.3199407,17221.0,17220.0,0.02048944]
[1673296702642,3.3209407,17221.0,17220.0,0.02048944]
[1673296702892,3.94099487,17221.0,17220.0,0.02048944]
[1673296703158,3.80599487,17221.0,17220.0,0.01948944]
[1673296703429,3.94199487,17221.0,17220.0,0.02048944]
[1673296704732,3.94199487,17221.0,17220.0,0.04581196]
[1673296705740,3.94199487,17221.0,17220.0,0.02048944]
[1673296706464,3.94205487,17221.0,17220.0,0.02048944]
[1673296706722,3.89112692,17221.0,17220.0,0.04504353]
[1673296706977,3.07794092,17221.0,17220.0,0.04504353]
[1673296707737,3.07794092,17221.0,17220.0,0.02048944]
[1673296708751,3.07794092,17221.0,17220.0,0.04504353]
[1673296709796,3.07794092,17221.0,17220.0,0.02048944]
[1673296710350,3.73323669,17221.0,17220.0,0.00548944]
[1673296710613,3.65862692,17221.0,17220.0,0.00548944]
[1673296710882,3.65862692,17221.0,17220.0,0.03004353]
[1673296711640,3.65856692,17221.0,17220.0,0.00548944]
[1673296712871,2.60194168,17221.0,17220.0,0.00548944]
[1673296713919,3.65856692,17221.0,17220.0,0.00548944]
[1673296714424,3.07788092,17221.0,17220.0,0.00548944]
[1673296715943,0.00277719,17219.0,17217.0,0.01756384]
[1673296716197,0.361936,17218.0,17217.0,0.01756384]
[1673296716950,0.361936,17218.0,17217.0,0.01762398]
[1673296717219,0.30277719,17219.0,17217.0,0.01762398]
[1673296717469,0.30277719,17219.0,17217.0,0.01756384]
[1673296717728,0.361936,17218.0,17217.0,0.0436308]
[1673296718007,0.88353219,17219.0,17217.0,0.0426308]
[1673296718268,0.135,17218.0,17217.0,0.0436308]
[1673296718520,0.135,17218.0,17217.0,0.0426308]
[1673296718521,0.361936,17218.0,17217.0,0.0426308]
[1673296718779,0.361936,17218.0,17217.0,0.0436308]
[1673296719060,0.88353219,17219.0,17217.0,0.0426308]
[1673296719306,0.496936,17218.0,17217.0,0.0436308]
[1673296719805,0.496936,17218.0,17217.0,0.01856384]
[1673296720057,0.135,17218.0,17217.0,0.01862398]
[1673296720301,0.135,17218.0,17217.0,0.01856384]
[1673296720553,0.30277719,17219.0,17217.0,0.01756384]
[1673296720816,0.43777719,17219.0,17217.0,0.01856384]
[1673296721063,0.496936,17218.0,17217.0,0.01956384]
[1673296721312,0.30277719,17219.0,17217.0,0.70766373]
[1673296721821,0.30277719,17219.0,17218.0,0.02504184]
[1673296722068,0.66471319,17219.0,17218.0,0.02504184]
[1673296722825,0.66471319,17219.0,17217.0,0.70866373]
[1673296723070,0.361936,17218.0,17217.0,0.70866373]
[1673296723319,0.30277719,17219.0,17217.0,0.70866373]
[1673296723568,0.30277719,17219.0,17218.0,0.02504184]
[1673296723816,0.43777719,17219.0,17218.0,0.02504184]
[1673296724074,0.79971319,17219.0,17218.0,0.02504184]
[1673296724323,0.66471319,17219.0,17218.0,0.02504184]
[1673296724832,0.80071319,17219.0,17218.0,0.001]
[1673296725089,1.38146619,17219.0,17218.0,0.001]
[1673296725584,1.38152619,17219.0,17218.0,0.02604184]
[1673296725838,0.80077319,17219.0,17218.0,0.02604184]
[1673296726363,2.1917284,17219.0,17218.0,0.02604184]
[1673296726616,2.1917284,17219.0,17218.0,0.001]
[1673296726617,2.05886427,17219.0,17218.0,0.001]
[1673296727388,2.39506427,17219.0,17218.0,0.001]
[1673296727643,3.37889069,17219.0,17218.0,0.001]
[1673296727910,3.63578691,17219.0,17218.0,0.001]
[1673296728161,6.34267124,17219.0,17218.0,0.0009]
[1673296728701,6.34267124,17219.0,17218.0,0.02311289]
[1673296728945,6.85981703,17219.0,17218.0,0.02311289]
[1673296729201,6.85981769,17219.0,17218.0,0.02311289]
[1673296729455,0.68402706,17218.0,17217.0,0.01615164]
[1673296729727,4.35577555,17218.0,17217.0,0.00911046]
[1673296729982,3.64822065,17218.0,17217.0,0.00911046]
[1673296730238,3.81948569,17218.0,17217.0,0.00911046]
[1673296730490,3.77638471,17218.0,17217.0,0.00911046]
[1673296730736,3.00568832,17218.0,17217.0,0.02960178]
[1673296730993,3.31196,17218.0,17217.0,0.02960178]
[1673296731255,3.04355249,17218.0,17217.0,0.02960178]
[1673296731513,3.48422005,17218.0,17217.0,0.02960178]
[1673296731779,3.34822005,17218.0,17217.0,0.02960178]
[1673296732020,4.23487675,17218.0,17217.0,0.02960178]
[1673296732268,5.10134663,17218.0,17217.0,0.02960178]
[1673296732553,5.68213363,17218.0,17217.0,0.02960178]
[1673296732795,5.07270765,17218.0,17217.0,0.02960178]